{"text_format":"1","workbook":"xlsx","n_sheets":4,"sheets":["Offerte blad_2","Calculatie_CLV","PrijslijstDUMP","Data"],"not_rendered":{"charts":0,"images":5,"macros":1,"external_links":0,"defined_names":31,"comments":1,"pivot_tables":0},"unopened":[],"bounds":{"document_bytes":16777216,"sheet_cells":100000,"rows_first":2000,"rows_last":500,"rows_between":2000,"halvings":0,"cell_chars":16384,"cell_head_chars":4096},"cells_cut":0,"cells_raw":0,"read":"whole","date_system":"1900"}

{"sheet":"Offerte blad_2","index":0,"n_rows":163,"n_cols":9,"rows_kept":163,"cut":false,"hidden":false,"merged":[[150,1,150,5],[150,6,150,8],[151,1,151,8],[159,1,160,8],[129,1,130,8],[135,1,135,5],[135,6,135,8],[136,1,136,8],[144,1,145,8],[96,1,96,8],[104,1,105,8],[120,1,120,5],[120,6,120,8],[121,1,121,8],[80,1,80,5],[80,6,80,8],[81,1,81,8],[89,1,90,8],[95,1,95,5],[95,6,95,8],[50,1,51,8],[65,1,65,5],[65,6,65,8],[66,1,66,8],[74,1,75,8],[27,1,27,8],[35,1,36,8],[41,1,41,5],[41,6,41,8],[42,1,42,8],[0,0,2,8],[26,1,26,5],[26,6,26,8],[6,0,6,8],[11,1,11,5],[11,6,11,8],[12,1,12,8],[20,1,21,8]]}
[]
[]
[]
[]
[]
[]
["Offerte voor het leveren van CLV-systemen in inox 316/304 voor de toe- en afvoer van overdruk ketels."]
[]
[null,"TOTALE NETTOPRIJS ",null,null,{"$f":"B11+B26+B41+B65+B80+B95+B120+B135+B150","v":1},"CLV-Syste(e)m(en): ",null,null,{"$f":"I24+I39+I54+I78+I93+I108+I133+I148+I163","v":150}]
[]
[1,{"$f":"Calculatie_CLV!I4","v":1},"x : CLV "]
[null,"CLV-systeem in inox 316/304 voor de toe/afvoer van;",null,null,null,null,"2x CV Toestel Tzerra Ace 24c"]
[null,"waarvan de technische kenmerken hieronder volgen:"]
[null,"• Fabricaat: Roccheggiani CLV "]
[null,"• Conform TÜV-certificaat 0036 CPR 9811 014"]
[null,"• Binnenwand diameter",null,null,":",{"$f":"MID(Calculatie_CLV!I3,2,3)&\" mm\"","v":"100 mm"},"in inox 316L, laser gelast, dikte 5/10 "]
[null,"• Buitenwand diameter",null,null,":",{"$f":"MID(Calculatie_CLV!I3,5,3)&\" mm\"","v":"150 mm"},"in inox 304, laser gelast, dikte 5/10"]
[null,"• Aantal verdiepingen",null,null,":",{"$f":"Calculatie_CLV!I5+Calculatie_CLV!I6","v":2}]
[null,"• Verdiepingshoogte (incl. vloer)                     :",null,null,":",{"$f":"\"Ca. \"&TEXT(Calculatie_CLV!I11/1000,\"0,0\")","v":"Ca. 3,1"},"meter"]
[null,"• Totale systeem hoogte",null,null,":",{"$f":"\"Ca. \"&TEXT(Calculatie_CLV!T2/1000,\"0,0\")","v":"Ca. 6,9"},"meter"]
[null,{"$f":"\"• Inbegrepen: T-stuk aansluiting \"&Calculatie_CLV!I7&\" mm (luchttoevoer en afvoer van verbrandingsgassen), muursteun, condensaftap, speciaal eindelement en stormkraag.\"","v":"• Inbegrepen: T-stuk aansluiting 60/100 mm (luchttoevoer en afvoer van verbrandingsgassen), muursteun, condensaftap, speciaal eindelement en stormkraag."}]
[]
[]
[null,"NETTOPRIJS – per CLV:",null,null,{"$f":"Calculatie_CLV!R63","v":150},null,null,"Totaal",{"$f":"B11*E24","v":150}]
[]
[2,{"$f":"INDIRECT(\"Calculatie_CLV!$AA$4\")","v":0},"x : CLV "]
[null,"CLV-systeem in inox 316/304 voor de toe/afvoer van;",null,null,null,null,"2x CV Toestel Tzerra Ace 24c"]
[null,"waarvan de technische kenmerken hieronder volgen:"]
[null,"• Fabricaat: Roccheggiani CLV "]
[null,"• Conform TÜV-certificaat 0036 CPR 9811 014"]
[null,"• Binnenwand diameter",null,null,":",{"$f":"MID(INDIRECT(\"'Calculatie_CLV'!AA3\"),2,3)&\" mm\"","v":" mm"},"in inox 316L, laser gelast, dikte 5/10 "]
[null,"• Buitenwand diameter",null,null,":",{"$f":"MID(INDIRECT(\"'Calculatie_CLV'!AA3\"),5,3)&\" mm\"","v":" mm"},"in inox 304, laser gelast, dikte 5/10"]
[null,"• Aantal verdiepingen",null,null,":",{"$f":"INDIRECT(\"'Calculatie_CLV'!AA5\")+INDIRECT(\"'Calculatie_CLV'!AA6\")","v":0}]
[null,"• Verdiepingshoogte (incl. vloer)                     :",null,null,":",{"$f":"\"Ca. \"&TEXT(INDIRECT(\"'Calculatie_CLV'!AA11\")/1000,\"0,0\")","v":"Ca. 0,0"},"meter"]
[null,"• Totale systeem hoogte",null,null,":",{"$f":"\"Ca. \"&TEXT(INDIRECT(\"'Calculatie_CLV'!AL2\")/1000,\"0,0\")","v":"Ca. 0,0"},"meter"]
[null,{"$f":"\"• Inbegrepen: T-stuk aansluiting \"&INDIRECT(\"'Calculatie_CLV'!AA7\")&\" mm (luchttoevoer en afvoer van verbrandingsgassen), muursteun, condensaftap, speciaal eindelement en stormkraag.\"","v":"• Inbegrepen: T-stuk aansluiting  mm (luchttoevoer en afvoer van verbrandingsgassen), muursteun, condensaftap, speciaal eindelement en stormkraag."}]
[]
[]
[null,"NETTOPRIJS – per CLV:",null,null,{"$f":"INDIRECT(\"Calculatie_CLV!AJ63\")","v":0},null,null,"Totaal",{"$f":"B26*E39","v":0}]
[]
[3,{"$f":"INDIRECT(\"Calculatie_CLV!AS4\")","v":0},"x : CLV "]
[null,"CLV-systeem in inox 316/304 voor de toe/afvoer van;",null,null,null,null,"2x CV Toestel Tzerra Ace 24c"]
[null,"waarvan de technische kenmerken hieronder volgen:"]
[null,"• Fabricaat: Roccheggiani CLV "]
[null,"• Conform TÜV-certificaat 0036 CPR 9811 014"]
[null,"• Binnenwand diameter",null,null,":",{"$f":"MID(INDIRECT(\"'Calculatie_CLV'!As3\"),2,3)&\" mm\"","v":" mm"},"in inox 316L, laser gelast, dikte 5/10 "]
[null,"• Buitenwand diameter",null,null,":",{"$f":"MID(INDIRECT(\"'Calculatie_CLV'!As3\"),5,3)&\" mm\"","v":" mm"},"in inox 304, laser gelast, dikte 5/10"]
[null,"• Aantal verdiepingen",null,null,":",{"$f":"INDIRECT(\"'Calculatie_CLV'!As5\")+INDIRECT(\"'Calculatie_CLV'!As6\")","v":0}]
[null,"• Verdiepingshoogte (incl. vloer)                     :",null,null,":",{"$f":"\"Ca. \"&TEXT(INDIRECT(\"'Calculatie_CLV'!As11\")/1000,\"0,0\")","v":"Ca. 0,0"},"meter"]
[null,"• Totale systeem hoogte",null,null,":",{"$f":"\"Ca. \"&TEXT(INDIRECT(\"'Calculatie_CLV'!BD2\")/1000,\"0,0\")","v":"Ca. 0,0"},"meter"]
[null,{"$f":"\"• Inbegrepen: T-stuk aansluiting \"&INDIRECT(\"'Calculatie_CLV'!As7\")&\" mm (luchttoevoer en afvoer van verbrandingsgassen), muursteun, condensaftap, speciaal eindelement en stormkraag.\"","v":"• Inbegrepen: T-stuk aansluiting  mm (luchttoevoer en afvoer van verbrandingsgassen), muursteun, condensaftap, speciaal eindelement en stormkraag."}]
[]
[]
[null,"NETTOPRIJS – per CLV:",null,null,{"$f":"INDIRECT(\"Calculatie_CLV!BB63\")","v":0},null,null,"Totaal",{"$f":"B41*E54","v":0}]
[]
[]
[]
[]
[]
[]
[]
[]
[]
[]
[4,{"$f":"INDIRECT(\"Calculatie_CLV!BK4\")","v":0},"x : CLV "]
[null,"CLV-systeem in inox 316/304 voor de toe/afvoer van;",null,null,null,null,"2x CV Toestel Tzerra Ace 24c"]
[null,"waarvan de technische kenmerken hieronder volgen:"]
[null,"• Fabricaat: Roccheggiani CLV "]
[null,"• Conform TÜV-certificaat 0036 CPR 9811 014"]
[null,"• Binnenwand diameter",null,null,":",{"$f":"MID(INDIRECT(\"'Calculatie_CLV'!BK3\"),2,3)&\" mm\"","v":" mm"},"in inox 316L, laser gelast, dikte 5/10 "]
[null,"• Buitenwand diameter",null,null,":",{"$f":"MID(INDIRECT(\"'Calculatie_CLV'!BK3\"),5,3)&\" mm\"","v":" mm"},"in inox 304, laser gelast, dikte 5/10"]
[null,"• Aantal verdiepingen",null,null,":",{"$f":"INDIRECT(\"'Calculatie_CLV'!BK5\")+INDIRECT(\"'Calculatie_CLV'!BK6\")","v":0}]
[null,"• Verdiepingshoogte (incl. vloer)                     :",null,null,":",{"$f":"\"Ca. \"&TEXT(INDIRECT(\"'Calculatie_CLV'!BK11\")/1000,\"0,0\")","v":"Ca. 0,0"},"meter"]
[null,"• Totale systeem hoogte",null,null,":",{"$f":"\"Ca. \"&TEXT(INDIRECT(\"'Calculatie_CLV'!BV2\")/1000,\"0,0\")","v":"Ca. 0,0"},"meter"]
[null,{"$f":"\"• Inbegrepen: T-stuk aansluiting \"&INDIRECT(\"'Calculatie_CLV'!BK7\")&\" mm (luchttoevoer en afvoer van verbrandingsgassen), muursteun, condensaftap, speciaal eindelement en stormkraag.\"","v":"• Inbegrepen: T-stuk aansluiting  mm (luchttoevoer en afvoer van verbrandingsgassen), muursteun, condensaftap, speciaal eindelement en stormkraag."}]
[]
[]
[null,"NETTOPRIJS – per CLV:",null,null,{"$f":"INDIRECT(\"Calculatie_CLV!BT63\")","v":0},null,null,"Totaal",{"$f":"B65*E78","v":0}]
[]
[5,{"$f":"INDIRECT(\"Calculatie_CLV!CC4\")","v":0},"x : CLV "]
[null,"CLV-systeem in inox 316/304 voor de toe/afvoer van;",null,null,null,null,"2x CV Toestel Tzerra Ace 24c"]
[null,"waarvan de technische kenmerken hieronder volgen:"]
[null,"• Fabricaat: Roccheggiani CLV "]
[null,"• Conform TÜV-certificaat 0036 CPR 9811 014"]
[null,"• Binnenwand diameter",null,null,":",{"$f":"MID(INDIRECT(\"'Calculatie_CLV'!CC3\"),2,3)&\" mm\"","v":" mm"},"in inox 316L, laser gelast, dikte 5/10 "]
[null,"• Buitenwand diameter",null,null,":",{"$f":"MID(INDIRECT(\"'Calculatie_CLV'!CC3\"),5,3)&\" mm\"","v":" mm"},"in inox 304, laser gelast, dikte 5/10"]
[null,"• Aantal verdiepingen",null,null,":",{"$f":"INDIRECT(\"'Calculatie_CLV'!CC5\")+INDIRECT(\"'Calculatie_CLV'!CC6\")","v":0}]
[null,"• Verdiepingshoogte (incl. vloer)                     :",null,null,":",{"$f":"\"Ca. \"&TEXT(INDIRECT(\"'Calculatie_CLV'!CC11\")/1000,\"0,0\")","v":"Ca. 0,0"},"meter"]
[null,"• Totale systeem hoogte",null,null,":",{"$f":"\"Ca. \"&TEXT(INDIRECT(\"'Calculatie_CLV'!CN2\")/1000,\"0,0\")","v":"Ca. 0,0"},"meter"]
[null,{"$f":"\"• Inbegrepen: T-stuk aansluiting \"&INDIRECT(\"'Calculatie_CLV'!CC7\")&\" mm (luchttoevoer en afvoer van verbrandingsgassen), muursteun, condensaftap, speciaal eindelement en stormkraag.\"","v":"• Inbegrepen: T-stuk aansluiting  mm (luchttoevoer en afvoer van verbrandingsgassen), muursteun, condensaftap, speciaal eindelement en stormkraag."}]
[]
[]
[null,"NETTOPRIJS – per CLV:",null,null,{"$f":"INDIRECT(\"Calculatie_CLV!CL63\")","v":0},null,null,"Totaal",{"$f":"B80*E93","v":0}]
[]
[6,{"$f":"INDIRECT(\"Calculatie_CLV!CU4\")","v":0},"x : CLV "]
[null,"CLV-systeem in inox 316/304 voor de toe/afvoer van;",null,null,null,null,"2x CV Toestel Tzerra Ace 24c"]
[null,"waarvan de technische kenmerken hieronder volgen:"]
[null,"• Fabricaat: Roccheggiani CLV "]
[null,"• Conform TÜV-certificaat 0036 CPR 9811 014"]
[null,"• Binnenwand diameter",null,null,":",{"$f":"MID(INDIRECT(\"'Calculatie_CLV'!CU3\"),2,3)&\" mm\"","v":" mm"},"in inox 316L, laser gelast, dikte 5/10 "]
[null,"• Buitenwand diameter",null,null,":",{"$f":"MID(INDIRECT(\"'Calculatie_CLV'!CU3\"),5,3)&\" mm\"","v":" mm"},"in inox 304, laser gelast, dikte 5/10"]
[null,"• Aantal verdiepingen",null,null,":",{"$f":"INDIRECT(\"'Calculatie_CLV'!CU5\")+INDIRECT(\"'Calculatie_CLV'!CU6\")","v":0}]
[null,"• Verdiepingshoogte (incl. vloer)                     :",null,null,":",{"$f":"\"Ca. \"&TEXT(INDIRECT(\"'Calculatie_CLV'!CU11\")/1000,\"0,0\")","v":"Ca. 0,0"},"meter"]
[null,"• Totale systeem hoogte",null,null,":",{"$f":"\"Ca. \"&TEXT(INDIRECT(\"'Calculatie_CLV'!DF2\")/1000,\"0,0\")","v":"Ca. 0,0"},"meter"]
[null,{"$f":"\"• Inbegrepen: T-stuk aansluiting \"&INDIRECT(\"'Calculatie_CLV'!CU7\")&\" mm (luchttoevoer en afvoer van verbrandingsgassen), muursteun, condensaftap, speciaal eindelement en stormkraag.\"","v":"• Inbegrepen: T-stuk aansluiting  mm (luchttoevoer en afvoer van verbrandingsgassen), muursteun, condensaftap, speciaal eindelement en stormkraag."}]
[]
[]
[null,"NETTOPRIJS – per CLV:",null,null,{"$f":"INDIRECT(\"Calculatie_CLV!DD63\")","v":0},null,null,"Totaal",{"$f":"B95*E108","v":0}]
[]
[]
[]
[]
[]
[]
[]
[]
[]
[]
[]
[7,null,"x : CLV "]
[null,"CLV-systeem in inox 316/304 voor de toe/afvoer van;",null,null,null,null,"2x CV Toestel Tzerra Ace 24c"]
[null,"waarvan de technische kenmerken hieronder volgen:"]
[null,"• Fabricaat: Roccheggiani CLV "]
[null,"• Conform TÜV-certificaat 0036 CPR 9811 014"]
[null,"• Binnenwand diameter",null,null,":",100,"in inox 316L, laser gelast, dikte 5/10 "]
[null,"• Buitenwand diameter",null,null,":",150,"in inox 304, laser gelast, dikte 5/10"]
[null,"• Aantal verdiepingen",null,null,":",2]
[null,"• Verdiepingshoogte (incl. vloer)                     :",null,null,":","ca. 3","meter"]
[null,"• Totale systeem hoogte",null,null,":","ca. 7","meter"]
[null,"• Inbegrepen: T-stuk aansluiting 60/100 mm (luchttoevoer en afvoer van verbrandingsgassen), muursteun, condensaftap, speciaal eindelement en stormkraag."]
[]
[]
[null,"NETTOPRIJS – per CLV:",null,null,null,null,null,"Totaal",{"$f":"B120*E133","v":0}]
[]
[8,null,"x : CLV "]
[null,"CLV-systeem in inox 316/304 voor de toe/afvoer van;",null,null,null,null,"2x CV Toestel Tzerra Ace 24c"]
[null,"waarvan de technische kenmerken hieronder volgen:"]
[null,"• Fabricaat: Roccheggiani CLV "]
[null,"• Conform TÜV-certificaat 0036 CPR 9811 014"]
[null,"• Binnenwand diameter",null,null,":",100,"in inox 316L, laser gelast, dikte 5/10 "]
[null,"• Buitenwand diameter",null,null,":",150,"in inox 304, laser gelast, dikte 5/10"]
[null,"• Aantal verdiepingen",null,null,":",2]
[null,"• Verdiepingshoogte (incl. vloer)                     :",null,null,":","ca. 3","meter"]
[null,"• Totale systeem hoogte",null,null,":","ca. 7","meter"]
[null,"• Inbegrepen: T-stuk aansluiting 60/100 mm (luchttoevoer en afvoer van verbrandingsgassen), muursteun, condensaftap, speciaal eindelement en stormkraag."]
[]
[]
[null,"NETTOPRIJS – per CLV:",null,null,null,null,null,"Totaal",{"$f":"B135*E148","v":0}]
[]
[9,null,"x : CLV "]
[null,"CLV-systeem in inox 316/304 voor de toe/afvoer van;",null,null,null,null,"2x CV Toestel Tzerra Ace 24c"]
[null,"waarvan de technische kenmerken hieronder volgen:"]
[null,"• Fabricaat: Roccheggiani CLV "]
[null,"• Conform TÜV-certificaat 0036 CPR 9811 014"]
[null,"• Binnenwand diameter",null,null,":",100,"in inox 316L, laser gelast, dikte 5/10 "]
[null,"• Buitenwand diameter",null,null,":",150,"in inox 304, laser gelast, dikte 5/10"]
[null,"• Aantal verdiepingen",null,null,":",2]
[null,"• Verdiepingshoogte (incl. vloer)                     :",null,null,":","ca. 3","meter"]
[null,"• Totale systeem hoogte",null,null,":","ca. 7","meter"]
[null,"• Inbegrepen: T-stuk aansluiting 60/100 mm (luchttoevoer en afvoer van verbrandingsgassen), muursteun, condensaftap, speciaal eindelement en stormkraag."]
[]
[]
[null,"NETTOPRIJS – per CLV:",null,null,null,null,null,"Totaal",{"$f":"B150*E163","v":0}]

{"sheet":"Calculatie_CLV","index":1,"n_rows":64,"n_cols":97,"rows_kept":64,"cut":false,"hidden":false,"merged":[[2,8,2,9],[38,9,39,9],[40,8,43,9],[13,8,14,8],[13,9,14,9],[38,8,39,8],[25,8,26,8],[25,9,26,9],[27,8,30,9],[31,8,34,9],[15,8,18,9],[16,1,17,3],[4,8,4,9],[8,8,8,9],[5,8,5,9],[9,8,9,9],[6,8,6,9],[10,8,10,9],[7,8,7,9],[58,13,58,14],[61,13,61,14],[62,13,63,14],[19,8,22,9],[3,8,3,9],[51,12,54,15],[44,8,47,9],[38,11,39,11],[25,11,26,11],[13,11,14,11]]}
[null,"NAW gegevens",null,null,null,null,1,null,null,null,null,null,"Aantal","Element","Element","Omschrijving","Groothandel Prijs","Totaal Prijs","Hoogte(mm)","Hoogte Totaal(mm)",null,null,null,null,2,null,null,null,null,null,null,null,null,null,null,null,null,null,null,null,null,null,3,null,null,null,null,null,null,null,null,null,null,null,null,null,null,null,null,null,4,null,null,null,null,null,null,null,null,null,null,null,null,null,null,null,null,null,5,null,null,null,null,null,null,null,null,null,null,null,null,null,null,null,null,null,6]
[null,"Bedrijfsnaam",":",null,null,0.43,null,null,null,null,null,null,null,null,null,null,null,null,null,{"$f":"T57+(T39*P39)+(P26*T26)+T14","v":6860}]
[null,"Contactpersoon",":",null,null,null,null,"CLV Type","Ø100150",null,{"$f":"VALUE(RIGHT(I3,LEN(I3)-1))","v":100150},null,1,{"$f":"O3&\"\"&K$3","v":"DPC 410100150"},"DPC 410",{"$f":"IFERROR(VLOOKUP(N3,PrijslijstDUMP!$A$1:$H$416,3,FALSE),0)","v":"DPC-CLV Uitmonding d.100*150"},{"$f":"IFERROR(VLOOKUP(N3,PrijslijstDUMP!$A$1:$H$416,8,FALSE),0)","v":5},{"$f":"IFERROR(M3*Q3,0)","v":5},{"$f":"IFERROR(VLOOKUP(N3,PrijslijstDUMP!$A$1:$H$416,4,FALSE),0)","v":440},{"$f":"IFERROR(M3*S3,0)","v":440}]
[null,"Functie",":",null,null,null,null,"Aantal Strangen",1,null,null,null,1,{"$f":"O4&\"\"&K$3","v":"DPC 356100150"},"DPC 356",{"$f":"IFERROR(VLOOKUP(N4,PrijslijstDUMP!$A$1:$H$416,3,FALSE),0)","v":"Stormkraag RVS DP100/SPG150"},{"$f":"IFERROR(VLOOKUP(N4,PrijslijstDUMP!$A$1:$H$416,8,FALSE),0)","v":5},{"$f":"IFERROR(M4*Q4,0)","v":5}]
[null,"Adres",":",null,null,null,null,"Aantal Etages met RGA",2,null,null,null,1,"DPC 353100150","DPC 353",{"$f":"IFERROR(VLOOKUP(N5,PrijslijstDUMP!$A$1:$H$416,3,FALSE),0)","v":"SPG DDV plat dak d.150"},{"$f":"IFERROR(VLOOKUP(N5,PrijslijstDUMP!$A$1:$H$416,8,FALSE),0)","v":5},5]
[null,"Postcode",":",null,null,null,null,"Aantal Loos",0,null,null,null,0,"DPC 431100150","DPC 431",{"$f":"IFERROR(VLOOKUP(N6,PrijslijstDUMP!$A$1:$H$416,3,FALSE),0)","v":"DPC-CLV Verlengpijp Lg 250 d.100*150"},{"$f":"IFERROR(VLOOKUP(N6,PrijslijstDUMP!$A$1:$H$416,8,FALSE),0)","v":5},0,{"$f":"IFERROR(VLOOKUP(N6,PrijslijstDUMP!$A$1:$H$416,4,FALSE),0)","v":190},{"$f":"M6*S6","v":0}]
[null,"Plaats",":",null,null,null,null,"Aansluiting","60/100",null,{"$f":"_xlfn.IFS(K8=\"60/100Enkel\",\"DPC 456\",K8=\"80/125Enkel\",\"DPC 420\",K8=\"80/80Enkel\",\"DPC 403\",K8=\"60/100Dubbel\",\"DPC 445\",K8=\"80/125Dubbel\",\"DPC 437\",K8=\"80/80Dubbel\",\"DPC 428\")","v":"DPC 456"},null,1,"DPC 402100150","DPC 402",{"$f":"IFERROR(VLOOKUP(N7,PrijslijstDUMP!$A$1:$H$416,3,FALSE),0)","v":"DPC-CLV Verlengpijp Lg 500 d.100*150"},{"$f":"IFERROR(VLOOKUP(N7,PrijslijstDUMP!$A$1:$H$416,8,FALSE),0)","v":5},5,{"$f":"IFERROR(VLOOKUP(N7,PrijslijstDUMP!$A$1:$H$416,4,FALSE),0)","v":440},{"$f":"IFERROR(M7*S7,0)","v":440}]
[null,"E-mail",":",null,null,null,null,"Enkel/Dubbel","Enkel",null,{"$f":"I7&\"\"&I8","v":"60/100Enkel"},null,1,"DPC 401100150","DPC 401",{"$f":"IFERROR(VLOOKUP(N8,PrijslijstDUMP!$A$1:$H$416,3,FALSE),0)","v":"DPC-CLV Verlengpijp Lg 1000 d.100*150"},{"$f":"IFERROR(VLOOKUP(N8,PrijslijstDUMP!$A$1:$H$416,8,FALSE),0)","v":5},5,{"$f":"IFERROR(VLOOKUP(N8,PrijslijstDUMP!$A$1:$H$416,4,FALSE),0)","v":940},940]
[null,"Telefoon nr.",":",null,null,null,null,"Vloer Dikte",500,null,null,null,null,"100150",null,{"$f":"IFERROR(VLOOKUP(N9,PrijslijstDUMP!$A$1:$H$416,3,FALSE),0)","v":0},{"$f":"IFERROR(VLOOKUP(N9,PrijslijstDUMP!$A$1:$H$416,8,FALSE),0)","v":0},0,{"$f":"IFERROR(VLOOKUP(N9,PrijslijstDUMP!$A$1:$H$416,4,FALSE),0)","v":0},0]
[null,null,null,null,null,null,null,"Plafond Hoogte",2600,null,null,null,{"$f":"IF(O10<>\"\",1,\"\")","v":""},"100150",null,{"$f":"IFERROR(VLOOKUP(N10,PrijslijstDUMP!$A$1:$H$416,3,FALSE),0)","v":0},{"$f":"IFERROR(VLOOKUP(N10,PrijslijstDUMP!$A$1:$H$416,8,FALSE),0)","v":0},0,{"$f":"IFERROR(VLOOKUP(N10,PrijslijstDUMP!$A$1:$H$416,4,FALSE),0)","v":0},0]
[null,"Betreft/Proj.nr",":",null,null,null,null,"Totaal VloerH.",{"$f":"I9+I10","v":3100},null,null,null,{"$f":"IF(O11<>\"\",1,\"\")","v":""},"100150",null,{"$f":"IFERROR(VLOOKUP(N11,PrijslijstDUMP!$A$1:$H$416,3,FALSE),0)","v":0},{"$f":"IFERROR(VLOOKUP(N11,PrijslijstDUMP!$A$1:$H$416,8,FALSE),0)","v":0},0,{"$f":"IFERROR(VLOOKUP(N11,PrijslijstDUMP!$A$1:$H$416,4,FALSE),0)","v":0},0]
[null,"Offerte nr.",":",null,null,null,null,null,null,null,null,null,{"$f":"IF(O12<>\"\",1,\"\")","v":""},"100150",null,{"$f":"IFERROR(VLOOKUP(N12,PrijslijstDUMP!$A$1:$H$416,3,FALSE),0)","v":0},{"$f":"IFERROR(VLOOKUP(N12,PrijslijstDUMP!$A$1:$H$416,8,FALSE),0)","v":0},0,{"$f":"IFERROR(VLOOKUP(N12,PrijslijstDUMP!$A$1:$H$416,4,FALSE),0)","v":0},0]
[]
[null,"Accountmanager",":",null,null,null,null,{"$f":"H26+P26*(I16+J14)","v":6200},"Vloer",{"$f":"I9","v":500},null,null,null,null,null,null,null,null,null,{"$f":"SUM(T3:T13)","v":1820}]
[null,null,null,null,null,null,null,null,null,null,null,null,null,null,null,null,"Prijs Totaal",{"$f":"SUM(R3:R13)","v":25}]
[null,null,null,null,null,null,null,null,{"$f":"I10","v":2600},null,null,null,1,{"$f":"O16&\"\"&K$3","v":"DPC 731100150"},"DPC 731",{"$f":"IFERROR(VLOOKUP(N16,PrijslijstDUMP!$A$1:$H$416,3,FALSE),0)","v":"Muurbeugel DP100/SPG150"},{"$f":"IFERROR(VLOOKUP(N16,PrijslijstDUMP!$A$1:$H$416,8,FALSE),0)","v":5},{"$f":"IFERROR(M16*Q16,0)","v":5}]
[null,"Deze kleur cellen invullen of aanpassen",null,null,null,null,null,null,null,null,null,null,1,{"$f":"O17&\"\"&K$3","v":"DPC 405100150"},"DPC 405",{"$f":"IFERROR(VLOOKUP(N17,PrijslijstDUMP!$A$1:$H$416,3,FALSE),0)","v":"DPC-CLV Verstelbaar elt d.100*150"},{"$f":"IFERROR(VLOOKUP(N17,PrijslijstDUMP!$A$1:$H$416,8,FALSE),0)","v":5},{"$f":"IFERROR(M17*Q17,0)","v":5},280,{"$f":"M17*S17","v":280}]
[null,null,null,null,null,null,null,null,null,null,null,null,0,{"$f":"O18&\"\"&K$3","v":"DPC 431100150"},"DPC 431",{"$f":"IFERROR(VLOOKUP(N18,PrijslijstDUMP!$A$1:$H$416,3,FALSE),0)","v":"DPC-CLV Verlengpijp Lg 250 d.100*150"},{"$f":"IFERROR(VLOOKUP(N18,PrijslijstDUMP!$A$1:$H$416,8,FALSE),0)","v":5},0,190,{"$f":"M18*S18","v":0}]
[null,null,null,null,null,null,null,null,null,null,null,null,0,"DPC 402100150","DPC 402",{"$f":"IFERROR(VLOOKUP(N19,PrijslijstDUMP!$A$1:$H$416,3,FALSE),0)","v":"DPC-CLV Verlengpijp Lg 500 d.100*150"},{"$f":"IFERROR(VLOOKUP(N19,PrijslijstDUMP!$A$1:$H$416,8,FALSE),0)","v":5},0,440,{"$f":"M19*S19","v":0}]
[null,null,null,null,null,null,null,null,"Hoogte",null,null,null,3,"DPC 401100150","DPC 401",{"$f":"IFERROR(VLOOKUP(N20,PrijslijstDUMP!$A$1:$H$416,3,FALSE),0)","v":"DPC-CLV Verlengpijp Lg 1000 d.100*150"},{"$f":"IFERROR(VLOOKUP(N20,PrijslijstDUMP!$A$1:$H$416,8,FALSE),0)","v":5},15,940,{"$f":"M20*S20","v":2820},null,""]
[null,"Calculatie:",null,null,null,null,null,null,null,null,null,null,{"$f":"IF(O21<>\"\",1,\"\")","v":""},"100150",null,{"$f":"IFERROR(VLOOKUP(N21,PrijslijstDUMP!$A$1:$H$416,3,FALSE),0)","v":0},{"$f":"IFERROR(VLOOKUP(N21,PrijslijstDUMP!$A$1:$H$416,8,FALSE),0)","v":0},0,{"$f":"IFERROR(VLOOKUP(N21,PrijslijstDUMP!$A$1:$H$416,4,FALSE),0)","v":0},{"$f":"IFERROR(M21*S21,0)","v":0}]
[null,null,null,null,null,null,null,null,null,null,null,null,{"$f":"IF(O22<>\"\",1,\"\")","v":""},"100150",null,{"$f":"IFERROR(VLOOKUP(N22,PrijslijstDUMP!$A$1:$H$416,3,FALSE),0)","v":0},{"$f":"IFERROR(VLOOKUP(N22,PrijslijstDUMP!$A$1:$H$416,8,FALSE),0)","v":0},0,{"$f":"IFERROR(VLOOKUP(N22,PrijslijstDUMP!$A$1:$H$416,4,FALSE),0)","v":0},{"$f":"IFERROR(M22*S22,0)","v":0}]
[null,null,null,null,null,null,null,null,null,null,null,null,{"$f":"IF(O23<>\"\",1,\"\")","v":""},"100150",null,{"$f":"IFERROR(VLOOKUP(N23,PrijslijstDUMP!$A$1:$H$416,3,FALSE),0)","v":0},{"$f":"IFERROR(VLOOKUP(N23,PrijslijstDUMP!$A$1:$H$416,8,FALSE),0)","v":0},0,{"$f":"IFERROR(VLOOKUP(N23,PrijslijstDUMP!$A$1:$H$416,4,FALSE),0)","v":0},{"$f":"IFERROR(M23*S23,0)","v":0}]
[null,null,null,null,null,null,null,null,null,null,null,null,{"$f":"IF(O24<>\"\",1,\"\")","v":""},"100150",null,{"$f":"IFERROR(VLOOKUP(N24,PrijslijstDUMP!$A$1:$H$416,3,FALSE),0)","v":0},{"$f":"IFERROR(VLOOKUP(N24,PrijslijstDUMP!$A$1:$H$416,8,FALSE),0)","v":0},0,{"$f":"IFERROR(VLOOKUP(N24,PrijslijstDUMP!$A$1:$H$416,4,FALSE),0)","v":0},{"$f":"IFERROR(M24*S24,0)","v":0}]
[]
[null,null,null,null,null,null,null,{"$f":"H39+P39*(I28+J26)","v":6200},"Vloer",{"$f":"I9","v":500},null,null,null,null,null,{"$f":"I6","v":0},"Prijs 1 Vloer",{"$f":"SUM(R16:R25)","v":25},null,{"$f":"_xlfn.IFS(SUM(T16:T25)=0,\"\",SUM(T16:T25)>0,SUM(T16:T25))","v":3100}]
[null,null,null,null,null,null,null,null,null,null,null,null,null,null,null,"Verdiepingsvloer Loos zonder Rookgas aansluiting","Prijs Totaal",{"$f":"IFERROR(P26*R26,\"NVT\")","v":0},null,{"$f":"IF(I11=T26,\"Akkoord\",\"Hoogte Aanpassen\")","v":"Akkoord"}]
[null,null,null,null,null,null,null,null,{"$f":"I10","v":2600},null,null,null,1,{"$f":"O28&K$3","v":"DPC 731100150"},"DPC 731",{"$f":"IFERROR(VLOOKUP(N28,PrijslijstDUMP!$A$1:$H$416,3,FALSE),0)","v":"Muurbeugel DP100/SPG150"},{"$f":"IFERROR(VLOOKUP(N28,PrijslijstDUMP!$A$1:$H$416,8,FALSE),0)","v":5},{"$f":"IFERROR(M28*Q28,0)","v":5}]
[null,null,null,null,null,null,null,null,null,null,null,null,1,{"$f":"O29&K$3","v":"DPC 405100150"},"DPC 405",{"$f":"IFERROR(VLOOKUP(N29,PrijslijstDUMP!$A$1:$H$416,3,FALSE),0)","v":"DPC-CLV Verstelbaar elt d.100*150"},{"$f":"IFERROR(VLOOKUP(N29,PrijslijstDUMP!$A$1:$H$416,8,FALSE),0)","v":5},5,300,{"$f":"M29*S29","v":300}]
[null,null,null,null,null,null,null,null,null,null,null,null,1,{"$f":"O30&K$3","v":"DPC 456100150"},{"$f":"K$7","v":"DPC 456"},{"$f":"IFERROR(VLOOKUP(N30,PrijslijstDUMP!$A$1:$H$416,3,FALSE),0)","v":"CLV T-st 87° d100*150+conc aftak. 60*100"},{"$f":"IFERROR(VLOOKUP(N30,PrijslijstDUMP!$A$1:$H$416,8,FALSE),0)","v":5},5,290,{"$f":"M30*S30","v":290}]
[null,null,null,null,null,null,null,null,null,null,null,null,1,{"$f":"O31&K$3","v":"DPC 431100150"},"DPC 431",{"$f":"IFERROR(VLOOKUP(N31,PrijslijstDUMP!$A$1:$H$416,3,FALSE),0)","v":"DPC-CLV Verlengpijp Lg 250 d.100*150"},{"$f":"IFERROR(VLOOKUP(N31,PrijslijstDUMP!$A$1:$H$416,8,FALSE),0)","v":5},5,190,{"$f":"M31*S31","v":190}]
[null,null,null,null,null,null,null,null,"Hoogte",null,null,null,1,"DPC 402100150","DPC 402",{"$f":"IFERROR(VLOOKUP(N32,PrijslijstDUMP!$A$1:$H$416,3,FALSE),0)","v":"DPC-CLV Verlengpijp Lg 500 d.100*150"},{"$f":"IFERROR(VLOOKUP(N32,PrijslijstDUMP!$A$1:$H$416,8,FALSE),0)","v":5},5,440,{"$f":"M32*S32","v":440}]
[null,null,null,null,null,null,null,null,null,null,null,null,2,"DPC 401100150","DPC 401",{"$f":"IFERROR(VLOOKUP(N33,PrijslijstDUMP!$A$1:$H$416,3,FALSE),0)","v":"DPC-CLV Verlengpijp Lg 1000 d.100*150"},{"$f":"IFERROR(VLOOKUP(N33,PrijslijstDUMP!$A$1:$H$416,8,FALSE),0)","v":5},10,940,{"$f":"M33*S33","v":1880}]
[null,null,null,null,null,null,null,null,null,null,null,null,{"$f":"IF(O34<>\"\",1,\"\")","v":""},"100150",null,{"$f":"IFERROR(VLOOKUP(N34,PrijslijstDUMP!$A$1:$H$416,3,FALSE),0)","v":0},{"$f":"IFERROR(VLOOKUP(N34,PrijslijstDUMP!$A$1:$H$416,8,FALSE),0)","v":0},0,null,{"$f":"IFERROR(M34*S34,0)","v":0}]
[null,null,null,null,null,null,null,null,null,null,null,null,{"$f":"IF(O35<>\"\",1,\"\")","v":""},"100150",null,{"$f":"IFERROR(VLOOKUP(N35,PrijslijstDUMP!$A$1:$H$416,3,FALSE),0)","v":0},{"$f":"IFERROR(VLOOKUP(N35,PrijslijstDUMP!$A$1:$H$416,8,FALSE),0)","v":0},0,{"$f":"IFERROR(VLOOKUP(N35,PrijslijstDUMP!$A$1:$H$416,4,FALSE),0)","v":0},{"$f":"IFERROR(M35*S35,0)","v":0}]
[null,null,null,null,null,null,null,null,null,null,null,null,{"$f":"IF(O36<>\"\",1,\"\")","v":""},"100150",null,{"$f":"IFERROR(VLOOKUP(N36,PrijslijstDUMP!$A$1:$H$416,3,FALSE),0)","v":0},{"$f":"IFERROR(VLOOKUP(N36,PrijslijstDUMP!$A$1:$H$416,8,FALSE),0)","v":0},0,{"$f":"IFERROR(VLOOKUP(N36,PrijslijstDUMP!$A$1:$H$416,4,FALSE),0)","v":0},{"$f":"IFERROR(M36*S36,0)","v":0}]
[null,null,null,null,null,null,null,null,null,null,null,null,{"$f":"IF(O37<>\"\",1,\"\")","v":""},"100150",null,{"$f":"IFERROR(VLOOKUP(N37,PrijslijstDUMP!$A$1:$H$416,3,FALSE),0)","v":0},{"$f":"IFERROR(VLOOKUP(N37,PrijslijstDUMP!$A$1:$H$416,8,FALSE),0)","v":0},0,{"$f":"IFERROR(VLOOKUP(N37,PrijslijstDUMP!$A$1:$H$416,4,FALSE),0)","v":0},{"$f":"IFERROR(M37*S37,0)","v":0}]
[]
[null,null,null,null,null,null,null,{"$f":"I41+J39","v":3100},"Vloer",{"$f":"I9","v":500},null,null,null,null,null,{"$f":"I5-1","v":1},"Prijs 1 Vloer",{"$f":"SUM(R28:R37)","v":35},null,{"$f":"SUM(T28:T38)","v":3100}]
[null,null,null,null,null,null,null,null,null,null,null,null,null,null,null,"Verdiepingsvloer met een Rookgas aansluiting","Prijs Totaal",{"$f":"P39*R39","v":35},null,{"$f":"IF(I11=T39,\"Akkoord\",\"Hoogte Aanpassen\")","v":"Akkoord"}]
[null,null,null,null,null,null,null,null,{"$f":"I10","v":2600},null,null,null,1,{"$f":"O41&\"\"&K$3","v":"DPC 731100150"},"DPC 731",{"$f":"IFERROR(VLOOKUP(N41,PrijslijstDUMP!$A$1:$H$416,3,FALSE),0)","v":"Muurbeugel DP100/SPG150"},{"$f":"IFERROR(VLOOKUP(N41,PrijslijstDUMP!$A$1:$H$416,8,FALSE),0)","v":5},{"$f":"IFERROR(M41*Q41,0)","v":5}]
[null,null,null,null,null,null,null,null,null,null,null,null,1,{"$f":"O42&\"\"&K$3","v":"DPC 456100150"},{"$f":"K$7","v":"DPC 456"},{"$f":"IFERROR(VLOOKUP(N42,PrijslijstDUMP!$A$1:$H$416,3,FALSE),0)","v":"CLV T-st 87° d100*150+conc aftak. 60*100"},{"$f":"IFERROR(VLOOKUP(N42,PrijslijstDUMP!$A$1:$H$416,8,FALSE),0)","v":5},5,{"$f":"IFERROR(VLOOKUP(N42,PrijslijstDUMP!$A$1:$H$416,4,FALSE),0)","v":290},{"$f":"M42*S42","v":290}]
[null,null,null,null,null,null,null,null,null,null,null,null,1,"DPC 401100150","DPC 401",{"$f":"IFERROR(VLOOKUP(N43,PrijslijstDUMP!$A$1:$H$416,3,FALSE),0)","v":"DPC-CLV Verlengpijp Lg 1000 d.100*150"},{"$f":"IFERROR(VLOOKUP(N43,PrijslijstDUMP!$A$1:$H$416,8,FALSE),0)","v":5},5,{"$f":"IFERROR(VLOOKUP(N43,PrijslijstDUMP!$A$1:$H$416,4,FALSE),0)","v":940},940]
[null,null,null,null,null,null,null,null,null,null,null,null,1,"DPC 412100150","DPC 412",{"$f":"IFERROR(VLOOKUP(N44,PrijslijstDUMP!$A$1:$H$416,3,FALSE),0)","v":"DPC-CLV Muursteun d.100*150"},{"$f":"IFERROR(VLOOKUP(N44,PrijslijstDUMP!$A$1:$H$416,8,FALSE),0)","v":5},5,{"$f":"IFERROR(VLOOKUP(N44,PrijslijstDUMP!$A$1:$H$416,4,FALSE),0)","v":190},190]
[null,null,null,null,null,null,null,null,"Hoogte",null,null,null,1,"DPC 434100150","DPC 434",{"$f":"IFERROR(VLOOKUP(N45,PrijslijstDUMP!$A$1:$H$416,3,FALSE),0)","v":"DPC-CLV Inspectie elt d.100*150"},{"$f":"IFERROR(VLOOKUP(N45,PrijslijstDUMP!$A$1:$H$416,8,FALSE),0)","v":5},5,{"$f":"IFERROR(VLOOKUP(N45,PrijslijstDUMP!$A$1:$H$416,4,FALSE),0)","v":265},265]
[null,null,null,null,null,null,null,null,null,null,null,null,1,"DPC 409100150","DPC 409",{"$f":"IFERROR(VLOOKUP(N46,PrijslijstDUMP!$A$1:$H$416,3,FALSE),0)","v":"DPC-CLV aftap d.100*150"},{"$f":"IFERROR(VLOOKUP(N46,PrijslijstDUMP!$A$1:$H$416,8,FALSE),0)","v":5},5,{"$f":"IFERROR(VLOOKUP(N46,PrijslijstDUMP!$A$1:$H$416,4,FALSE),0)","v":255},255]
[null,null,null,null,null,null,null,null,null,null,null,null,null,"100150",null,{"$f":"IFERROR(VLOOKUP(N47,PrijslijstDUMP!$A$1:$H$416,3,FALSE),0)","v":0},{"$f":"IFERROR(VLOOKUP(N47,PrijslijstDUMP!$A$1:$H$416,8,FALSE),0)","v":0},0,{"$f":"IFERROR(VLOOKUP(N47,PrijslijstDUMP!$A$1:$H$416,4,FALSE),0)","v":0},0]
[null,null,null,null,null,null,null,null,null,null,null,null,null,"100150",null,{"$f":"IFERROR(VLOOKUP(N48,PrijslijstDUMP!$A$1:$H$416,3,FALSE),0)","v":0},{"$f":"IFERROR(VLOOKUP(N48,PrijslijstDUMP!$A$1:$H$416,8,FALSE),0)","v":0},0,{"$f":"IFERROR(VLOOKUP(N48,PrijslijstDUMP!$A$1:$H$416,4,FALSE),0)","v":0},0]
[null,null,null,null,null,null,null,null,null,null,null,null,null,"100150",null,{"$f":"IFERROR(VLOOKUP(N49,PrijslijstDUMP!$A$1:$H$416,3,FALSE),0)","v":0},{"$f":"IFERROR(VLOOKUP(N49,PrijslijstDUMP!$A$1:$H$416,8,FALSE),0)","v":0},0,{"$f":"IFERROR(VLOOKUP(N49,PrijslijstDUMP!$A$1:$H$416,4,FALSE),0)","v":0},0]
[null,null,null,null,null,null,null,null,null,null,null,null,null,null,null,{"$f":"IFERROR(VLOOKUP(N50,PrijslijstDUMP!$A$1:$H$416,3,FALSE),0)","v":0},{"$f":"IFERROR(VLOOKUP(N50,PrijslijstDUMP!$A$1:$H$416,8,FALSE),0)","v":0},0,{"$f":"IFERROR(VLOOKUP(N50,PrijslijstDUMP!$A$1:$H$416,4,FALSE),0)","v":0}]
[null,null,null,null,null,null,null,null,null,null,null,null,null,null,null,{"$f":"IFERROR(VLOOKUP(N51,PrijslijstDUMP!$A$1:$H$416,3,FALSE),0)","v":0},{"$f":"IFERROR(VLOOKUP(N51,PrijslijstDUMP!$A$1:$H$416,8,FALSE),0)","v":0},0,{"$f":"IFERROR(VLOOKUP(N51,PrijslijstDUMP!$A$1:$H$416,4,FALSE),0)","v":0}]
[null,null,null,null,null,null,null,null,null,null,null,null,{"$f":"IF(T2>14000,\"Let op! Systeem hoger dan veertien meter. Extra muursteun inpassen!\",\"\")","v":""},null,null,null,{"$f":"IFERROR(VLOOKUP(N52,PrijslijstDUMP!$A$1:$H$416,8,FALSE),0)","v":0},0,{"$f":"IFERROR(VLOOKUP(N52,PrijslijstDUMP!$A$1:$H$416,4,FALSE),0)","v":0}]
[null,null,null,null,null,null,null,null,null,null,null,null,null,null,null,null,{"$f":"IFERROR(VLOOKUP(N53,PrijslijstDUMP!$A$1:$H$416,8,FALSE),0)","v":0},0,{"$f":"IFERROR(VLOOKUP(N53,PrijslijstDUMP!$A$1:$H$416,4,FALSE),0)","v":0}]
[null,null,null,null,null,null,null,null,null,null,null,null,null,null,null,null,{"$f":"IFERROR(VLOOKUP(N54,PrijslijstDUMP!$A$1:$H$416,8,FALSE),0)","v":0},0,{"$f":"IFERROR(VLOOKUP(N54,PrijslijstDUMP!$A$1:$H$416,4,FALSE),0)","v":0}]
[null,null,null,null,null,null,null,null,null,null,null,null,null,null,null,null,{"$f":"IFERROR(VLOOKUP(N55,PrijslijstDUMP!$A$1:$H$416,8,FALSE),0)","v":0},0,{"$f":"IFERROR(VLOOKUP(N55,PrijslijstDUMP!$A$1:$H$416,4,FALSE),0)","v":0}]
[]
[null,null,null,null,null,null,null,null,null,null,null,null,null,null,null,null,null,null,null,{"$f":"SUM(T41:T56)","v":1940}]
[null,null,":",null,null,null,null,null,null,null,null,null,null,null,null,"Begane Grond",null,{"$f":"SUM(R41:R56)","v":30}]
[null,null,":"]
[null,null,":",null,null,null,null,null,null,null,null,null,null,null,null,null,"BRUTO prijs",{"$f":"R15+R27+R40+R58","v":90}]
[null,null,":",null,null,null,null,null,null,null,null,null,null,null,null,"Extra marge",0.5,{"$f":"R60*(1+Q61)","v":135}]
[null,null,":",null,null,null,null,null,null,null,null,null,null,null,null,"Installateursprijs",0.9,{"$f":"R61/Q62","v":150}]
[null,null,":",null,null,null,null,null,null,null,null,null,null,null,null,null,"AANBIEDINGSPRIJS P.ST",{"$f":"R62","v":150}]
[null,null,":",null,null,null,null,null,null,null,null,null,null,null,null,null,"AANBIEDINGSPRIJS TOT",{"$f":"I4*R63","v":150},"CLV",{"$f":"I4","v":1}]

{"sheet":"PrijslijstDUMP","index":2,"n_rows":184,"n_cols":8,"rows_kept":184,"cut":false,"hidden":true,"merged":[[1,4,8,4],[9,4,16,4],[17,4,24,4],[25,4,32,4],[33,4,40,4],[41,4,48,4],[49,4,56,4],[57,4,64,4],[65,4,72,4],[81,4,88,4],[73,4,80,4],[89,4,96,4],[97,4,104,4],[105,4,112,4],[121,4,128,4],[129,4,136,4],[113,4,120,4],[173,6,174,6],[182,4,183,4],[137,4,144,4],[145,4,152,4],[153,4,160,4],[161,4,168,4],[169,4,181,4]]}
["ARTICLE",null,"DESCRIPTION","Werklengte (in mm)","DRAWING","DIAMETER\nØi / Øe (MM)","PRESSURE LEVEL","NETTO PRICE M&G"]
["DPC 401100150",null,"DPC-CLV Verlengpijp Lg 1000 d.100*150",{"$f":"1000-60","v":940},null,"100/150","P1",5]
["DPC 401120180",null,"DPC-CLV Verlengpijp Lg 1000 d.120*180",940,null,"120/180","P1",6]
["DPC 401130200",null,"DPC-CLV Verlengpijp Lg 1000 d.130*200",940,null,"130/200","P1",7]
["DPC 401150230",null,"DPC-CLV Verlengpijp Lg 1000 d.150*230",940,null,"150/230","P1",8]
["DPC 401180250",null,"DPC-CLV Verlengpijp Lg 1000 d.180*250",940,null,"180/250","P1",9]
["DPC 401200350",null,"CLV Verlengpijp Lg 1m d.200*350",940,null,"200/350","P1",10]
["DPC 401230350",null,"CLV Verlengpijp Lg 1m d.230*350",940,null,"230/350","P1",11]
["DPC 401250400",null,"CLV Verlengpijp Lg 1m d.250*400",940,null,"250/400","P1",12]
["DPC 402100150",null,"DPC-CLV Verlengpijp Lg 500 d.100*150",{"$f":"500-60","v":440},null,"100/150","P1",5]
["DPC 402120180",null,"DPC-CLV Verlengpijp Lg 500 d.120*180",440,null,"120/180","P1",6]
["DPC 402130200",null,"DPC-CLV Verlengpijp Lg 500 d.130*200",440,null,"130/200","P1",7]
["DPC 402150230",null,"DPC-CLV Verlengpijp Lg 500 d.150*230",440,null,"150/230","P1",8]
["DPC 402180250",null,"DPC-CLV Verlengpijp Lg 500 d.180*250",440,null,"180/250","P1",9]
["DPC 402200350",null,"DPC-CLV Verlengpijp Lg 500 d.200*350",440,null,"200/350","P1",10]
["DPC 402230350",null,"DPC-CLV Verlengpijp Lg 500 d.230*350",440,null,"230/350","P1",11]
["DPC 402250400",null,"DPC-CLV Verlengpijp Lg 500 d.250*400",440,null,"250/400","P1",12]
["DPC 403100150",null,"CLV T-stuk 90° d.100*150+aftakking 2*80",{"$f":"500-60","v":440},null,"100/150","P1",5]
["DPC 403120180",null,"CLV T-stuk 90° d.120*180+aftakking 2*80",440,null,"120/180","P1",6]
["DPC 403130200",null,"CLV T-stuk 90° d.130*200+aftakking 2*80",440,null,"130/200","P1",7]
["DPC 403150230",null,"CLV T-stuk 90° d.150*230+aftakking 2*80",440,null,"150/230","P1",8]
["DPC 403180250",null,"CLV T-stuk 90° d.180*250+aftakking 2*80",440,null,"180/250","P1",9]
["DPC 403200350",null,"CLV T-stuk 90° d.200*350+aftakking 2*80",440,null,"200/350","P1",10]
["DPC 403230350",null,"CLV T-stuk 90° d.230*350+aftakking 2*80",440,null,"230/350","P1",11]
["DPC 403250400",null,"CLV T-stuk 90° d.250*400+aftakking 2*80",440,null,"250/400","P1",12]
["DPC 405100150",null,"DPC-CLV Verstelbaar elt d.100*150",0,null,"100/150","P1",5]
["DPC 405120180",null,"DPC-CLV Verstelbaar elt d.120*180",0,null,"120/180","P1",6]
["DPC 405130200",null,"DPC-CLV Verstelbaar elt d.130*200",0,null,"130/200","P1",7]
["DPC 405150230",null,"DPC-CLV Verstelbaar elt d.150*230",0,null,"150/230","P1",8]
["DPC 405180250",null,"DPC-CLV Verstelbaar elt d.180*250",0,null,"180/250","P1",9]
["DPC 405200350",null,"DPC-CLV Verstelbaar elt d.200*350",0,null,"200/350","P1",10]
["DPC 405230350",null,"DPC-CLV Verstelbaar elt d.230*350",0,null,"230/350","P1",11]
["DPC 405250400",null,"DPC-CLV Verstelbaar elt d.250*400",0,null,"250/400","P1",12]
["DPC 406100150",null,"CLV bocht 45° d.100*150",null,null,"100/150","P1",5]
["DPC 406120180",null,"CLV bocht 45° d.120*180",null,null,"120/180","P1",6]
["DPC 406130200",null,"CLV bocht 45° d.130*200",null,null,"130/200","P1",7]
["DPC 406150230",null,"CLV bocht 45° d.150*230",null,null,"150/230","P1",8]
["DPC 406180250",null,"CLV bocht 45° d.180*250",null,null,"180/250","P1",9]
["DPC 406200350",null,"CLV Bocht 45°d.200*350",null,null,"200/350","P1",10]
["DPC 406230350",null,"CLV Bocht 45° d.230*350",null,null,"230/350","P1",11]
["DPC 406250400",null,"CLV Bocht 45°d.250*400",null,null,250400,"P1",12]
["DPC 409100150",null,"DPC-CLV aftap d.100*150",255,null,"100/150","P1",5]
["DPC 409120180",null,"DPC-CLV aftap d.120*180",255,null,"120/180","P1",6]
["DPC 409130200",null,"DPC-CLV aftap d.130*200",255,null,"130/200","P1",7]
["DPC 409150230",null,"DPC-CLV aftap d.150*230",255,null,"150/230","P1",8]
["DPC 409180250",null,"DPC-CLV aftap d.180*250",255,null,"180/250","P1",9]
["DPC 409200350",null,"DPC-CLV aftap d.200*350",255,null,"200/350","P1",10]
["DPC 409230350",null,"DPC-CLV aftap d.230*350",255,null,"230/350","P1",11]
["DPC 409250400",null,"DPC-CLV aftap d.250*400",255,null,"250/400","P1",12]
["DPC 410100150",null,"DPC-CLV Uitmonding d.100*150",{"$f":"500-60","v":440},null,"100/150","P1",5]
["DPC 410120180",null,"DPC-CLV Uitmonding d.120*180",440,null,"120/180","P1",6]
["DPC 410130200",null,"DPC-CLV Uitmonding d.130*200",440,null,"130/200","P1",7]
["DPC 410150230",null,"DPC-CLV Uitmonding d.150*230",440,null,"150/230","P1",8]
["DPC 410180250",null,"DPC-CLV Uitmonding d.180*250",440,null,"180/250","P1",9]
["DPC 410200350",null,"DPC-CLV Uitmonding d.200*350",440,null,"200/350","P1",10]
["DPC 410230350",null,"DPC-CLV Uitmonding d.230*350",440,null,"230/350","P1",11]
["DPC 410250400",null,"DPC-CLV Uitmonding d.250*400",440,null,"250/400","P1",12]
["DPC 412100150",null,"DPC-CLV Muursteun d.100*150",{"$f":"250-60","v":190},null,"100/150","P1",5]
["DPC 412120180",null,"DPC-CLV Muursteun d.120*180",190,null,"120/180","P1",6]
["DPC 412130200",null,"DPC-CLV Muursteun d.130*200",190,null,"130/200","P1",7]
["DPC 412150230",null,"DPC-CLV Muursteun d.150*230",190,null,"150/230","P1",8]
["DPC 412180250",null,"DPC-CLV Muursteun d.180*250",190,null,"180/250","P1",9]
["DPC 412200350",null,"DPC-CLV Muursteun d.200*350",190,null,"200/350","P1",10]
["DPC 412230350",null,"DPC-CLV Muursteun d.230*350",190,null,"230/350","P1",11]
["DPC 412250400",null,"DPC-CLV Muursteun d.250*400",190,null,"250/400","P1",12]
["DPC 419100150",null,"DPC Bocht 30° d.100*150",null,null,"100/150","P1",5]
["DPC 419120180",null,"DPC Bocht 30° d.120*180",null,null,"120/180","P1",6]
["DPC 419130200",null,"DPC Bocht 30° d.130*200",null,null,"130/200","P1",7]
["DPC 419150230",null,"DPC Bocht 30° d.150*230",null,null,"150/230","P1",8]
["DPC 419180250",null,"DPC Bocht 30° d.180*250",null,null,"180/250","P1",9]
["DPC 419200350",null,"DPC Bocht 30° d.200*350",null,null,"200/350","P1",10]
["DPC 419230350",null,"DPC Bocht 30° d.230*350",null,null,"230/350","P1",11]
["DPC 419250400",null,"DPC Bocht 30° d.250*400",null,null,"250/400","P1",12]
["DPC 456100150",null,"CLV T-st 87° d100*150+conc aftak. 60*100",{"$f":"350-60","v":290},null,"100/150","P1",5]
["DPC 456120180",null,"CLV T-st. d120*180+conc. aftak. 60*100",290,null,"120/180","P1",6]
["DPC 456130200",null,"CLV T-st. d130*200+conc. aftak. 60*100",290,null,"130/200","P1",7]
["DPC 456150230",null,"CLV T-st. d150*230+conc. aftak. 60*100",290,null,"150/230","P1",8]
["DPC 456180250",null,"CLV T-st. d180*250+conc. aftak. 60*100",290,null,"180/250","P1",9]
["DPC 456200350",null,"CLV T-st. d200*350+conc. aftak. 60*100",290,null,"200/350","P1",10]
["DPC 456230350",null,"CLV T-st. d230*350+conc. aftak. 60*100",290,null,"230/350","P1",11]
["DPC 456250400",null,"CLV T-st. d250*400+conc. aftak. 60*100",290,null,"250/400","P1",12]
["DPC 420100150",null,"CLV T-st. d100*150+conc. aftak 80*125",{"$f":"350-60","v":290},null,"100/150","P1",5]
["DPC 420120180",null,"CLV T-st. d120*180+conc. aftak. 80*125",290,null,"120/180","P1",6]
["DPC 420130200",null,"CLV T-st. d130*200+conc. aftak. 80*125",290,null,"130/200","P1",7]
["DPC 420150230",null,"CLV T-st. d150*230+conc. aftak. 80*125",290,null,"150/230","P1",8]
["DPC 420180250",null,"CLV T-st. d180*250+conc. aftak. 80*125",290,null,"180/250","P1",9]
["DPC 420200350",null,"CLV T-st. d200*350+conc. aftak. 80*125",290,null,"200/350","P1",10]
["DPC 420230350",null,"CLV T-st. d230*350+conc. aftak. 80*125",290,null,"230/350","P1",11]
["DPC 420250400",null,"CLV T-st. d250*400+conc. aftak. 80*125",290,null,"250/400","P1",12]
["DPC 428100150",null,"CLV T-st. d100*150+2 aansluitingen d80",{"$f":"500-60","v":440},null,"100/150","P1",5]
["DPC 428120180",null,"CLV T-st. d120*180+2 aansluitingen d80",440,null,"120/180","P1",6]
["DPC 428130200",null,"CLV T-st. d130*200+2 aansluitingen d80",440,null,"130/200","P1",7]
["DPC 428150230",null,"CLV T-st. d150*230+2 aansluitingen d80",440,null,"150/230","P1",8]
["DPC 428180250",null,"CLV T-st. d180*250+2 aansluitingen d80",440,null,"180/250","P1",9]
["DPC 428200350",null,"CLV T-st. d200*350+2 aansluitingen d80",440,null,"200/350","P1",10]
["DPC 428230350",null,"CLV T-st. d230*350+2 aansluitingen d80",440,null,"230/350","P1",11]
["DPC 428250400",null,"CLV T-st. d250*400+2 aansluitingen d80",440,null,"250/400","P1",12]
["DPC 431100150",null,"DPC-CLV Verlengpijp Lg 250 d.100*150",{"$f":"250-60","v":190},null,"100/150","P1",5]
["DPC 431120180",null,"DPC-CLV Verlengpijp Lg 250 d.120*180",190,null,"120/180","P1",6]
["DPC 431130200",null,"DPC-CLV Verlengpijp Lg 250 d.130*200",190,null,"130/200","P1",7]
["DPC 431150230",null,"DPC-CLV Verlengpijp Lg 250 d.150*230",190,null,"150/230","P1",8]
["DPC 431180250",null,"DPC-CLV Verlengpijp Lg 250 d.180*250",190,null,"180/250","P1",9]
["DPC 431200350",null,"DPC-CLV Verlengpijp Lg 250 d.200*350",190,null,"200/350","P1",10]
["DPC 431230350",null,"DPC-CLV Verlengpijp Lg 250 d.230*350",190,null,"230/350","P1",11]
["DPC 431250400",null,"DPC-CLV Verlengpijp Lg 250 d.250*400",190,null,"250/400","P1",12]
["DPC 434100150",null,"DPC-CLV Inspectie elt d.100*150",{"$f":"325-60","v":265},null,"100/150","P1",5]
["DPC 434120180",null,"DPC-CLV Inspectie elt d.120*180",{"$f":"355-60","v":295},null,"120/180","P1",6]
["DPC 434130200",null,"DPC-CLV Inspectie elt d.130*200",{"$f":"400-60","v":340},null,"130/200","P1",7]
["DPC 434150230",null,"DPC-CLV Inspectie elt d.150*230",{"$f":"400-60","v":340},null,"150/230","P1",8]
["DPC 434180250",null,"DPC-CLV Inspectie elt d.180*250",{"$f":"450-60","v":390},null,"180/250","P1",9]
["DPC 434200350",null,"DPC-CLV Inspectie elt d.200*350",{"$f":"550-60","v":490},null,"200/350","P1",10]
["DPC 434230350",null,"DPC-CLV Inspectie elt d.230*350",{"$f":"550-60","v":490},null,"230/350","P1",11]
["DPC 434250400",null,"DPC-CLV Inspectie elt d.250*400",{"$f":"600-60","v":540},null,"250/400","P1",12]
["DPC 445100150",null,"CLV T-st. d100*150+2 conc. aftak 60*100",{"$f":"350-60","v":290},null,"100/150","P1",5]
["DPC 445120180",null,"CLV T-st. d120*180+2 conc. aftak 60*100",290,null,"120/180","P1",6]
["DPC 445130200",null,"CLV T-st. d130*200+2 conc. aftak 60*100",290,null,"130/200","P1",7]
["DPC 445150230",null,"CLV T-st. d150*230+2 conc. aftak 60*100",290,null,"150/230","P1",8]
["DPC 445180250",null,"CLV T-st. d180*250+2 conc. Aftak 60*100",290,null,"180/250","P1",9]
["DPC 445200350",null,"CLV T-st. d200*350+2 conc. aftak 60*100",290,null,"200/350","P1",10]
["DPC 445230350",null,"CLV T-st. d230*350+2 conc. aftak 60*100",290,null,"230/350","P1",11]
["DPC 445250400",null,"CLV T-st. d250*400+2 conc. aftak 60*100",290,null,"250/400","P1",12]
["DPC 437100150",null,"CLV T-st. d100*150+2 conc. aftak 80*125",{"$f":"350-60","v":290},null,"100/150","P1",5]
["DPC 437120180",null,"CLV T-st. d120*180+2 conc. aftak 80*125",290,null,"120/180","P1",6]
["DPC 437130200",null,"CLV T-st. d130*200+2 conc. aftak 80*125",290,null,"130/200","P1",7]
["DPC 437150230",null,"CLV T-st. d150*230+2 conc. aftak 80*125",290,null,"150/230","P1",8]
["DPC 437180250",null,"CLV T-st. d180*250+2 conc. aftak 80*125",290,null,"180/250","P1",9]
["DPC 437200350",null,"CLV T-st. d200*350+2 conc. aftak 80*125",290,null,"200/350","P1",10]
["DPC 437230350",null,"CLV T-st. d230*350+2 conc. aftak 80*125",290,null,"230/350","P1",11]
["DPC 437250400",null,"CLV T-st. d250*400+2 conc. aftak 80*125",290,null,"250/400","P1",12]
["DPC 469100150",null,"DPC-CLV Grondsteun+purge+sifon d.100*150",450,null,"100/150","P1",5]
["DPC 469120180",null,"DPC-CLV Grondsteun+purge+sifon d.120*180",450,null,"120/180","P1",6]
["DPC 469130200",null,"DPC-CLV Grondsteun+purge+sifon d.130*200",450,null,"130/200","P1",7]
["DPC 469150230",null,"DPC-CLV Grondsteun+purge+sifon d.150*230",450,null,"150/230","P1",8]
["DPC 469180250",null,"DPC-CLV Grondsteun+purge+sifon d.180*250",450,null,"180/250","P1",9]
["DPC 469200350",null,"DPC-CLV Grondsteun+purge+sifon d.200*350",450,null,"200/350","P1",10]
["DPC 469230350",null,"DPC-CLV Grondsteun+purge+sifon d.230*350",450,null,"230/350","P1",11]
["DPC 469250400",null,"DPC-CLV Grondsteun+purge+sifon d.250*400",450,null,"250/400","P1",12]
["DPC 4111100150",null,"CLV/DPC bocht 87° d.100*150",null,null,"100/150","P1",5]
["DPC 4111120180",null,"CLV/DPC bocht 87° d.120*180",null,null,"120/180","P1",6]
["DPC 4111130200",null,"CLV/DPC Bocht 87° d.130*200",null,null,"130/200","P1",7]
["DPC 4111150230",null,"CLV/DPC bocht 87° d.150*230",null,null,"150/230","P1",8]
["DPC 4111180250",null,"CLV/DPC bocht 87° d.180*250",null,null,"180/250","P1",9]
["DPC 4111200350",null,"CLV/DPC bocht 87° d.200*350",null,null,"200/350","P1",10]
["DPC 4111230350",null,"CLV/DPC bocht 87° d.230*350",null,null,"230/350","P1",11]
["DPC 4111250400",null,"CLV/DPC bocht 87° d.250*400",null,null,"250/400","P1",12]
["DPC 353100150",null,"SPG DDV plat dak d.150",null,null,"100/150",null,5]
["DPC 353120180",null,"SPG DDV plat dak d.180",null,null,"120/180",null,6]
["DPC 353130200",null,"SPG DDV plat dak d.200",null,null,"130/200",null,7]
["DPC 353150230",null,"SP DDV plat dak d.230",null,null,"150/230",null,8]
["DPC 353180250",null,"SP DDV plat dak d.250",null,null,"180/250",null,9]
["DPC 353200350",null,"SP DDV plat dak d.350",null,null,"200/350",null,10]
["DPC 353230350",null,"SP DDV plat dak d.350",null,null,"230/350",null,11]
["DPC 353250400",null,"SP DDV plat dak d.400",null,null,"250/400",null,12]
["DPC 356100150",null,"Stormkraag RVS DP100/SPG150",null,null,"100/150",null,5]
["DPC 356120180",null,"Stormkraag RVS DP130/SPG180",null,null,"120/180",null,6]
["DPC 356130200",null,"Stormkraag RVS DP150/SPG200",null,null,"130/200",null,7]
["DPC 356150230",null,"Stormkraag RVS DP180/SPG230",null,null,"150/230",null,8]
["DPC 356180250",null,"Stormkraag RVS DP200/SPG250",null,null,"180/250",null,9]
["DPC 356200350",null,"Stormkraag RVS DP300/SPG350",null,null,"200/350",null,10]
["DPC 356230350",null,"Stormkraag RVS DP300/SPG350",null,null,"230/350",null,11]
["DPC 356250400",null,"Stormkraag RVS SPG400",null,null,"250/400",null,12]
["DPC 731100150",null,"Muurbeugel DP100/SPG150",null,null,"100/150",null,5]
["DPC 731120180",null,"Muurbeugel DP130/SPG180",null,null,"120/180",null,6]
["DPC 731130200",null,"Muurbeugel DP150/SPG200",null,null,"130/200",null,7]
["DPC 731150230",null,"Muurbeugel DP180/SPG230",null,null,"150/230",null,8]
["DPC 731180250",null,"Muurbeugel DP200/SP250",null,null,"180/250",null,9]
["DPC 731200350",null,"Muurbeugel DP300/SP350",null,null,"200/350",null,10]
["DPC 731230350",null,"Muurbeugel DP300/SP350",null,null,"230/350",null,11]
["DPC 731250400",null,"Muurbeugel DP350/SP400",null,null,"250/400",null,12]
["ACF FG1080",null,"Safety Bracket SPG d.80",null,null,80,null,5]
["ACF FG1100",null,"Safety Bracket SPG d.100",null,null,100,null,6]
["ACF FG1120",null,"Safety Bracket SPG d.120",null,null,120,null,7]
["ACF FG1130",null,"Safety Bracket SPG d.130",null,null,130,null,8]
["ACF FG1140",null,"Safety bracket SPG d.140",null,null,140,"mee in de prijzen van de DPC stukken",9]
["ACF FG1100150",null,"Safety  bracket SPG d.100/150",null,null,"100/150",null,10]
["ACF FG1120180",null,"Safety bracket SPG d.120/180",null,null,"120/180",null,11]
["ACF FG1130200",null,"Safety bracket SPG d.130/200",null,null,"130/200",null,12]
["ACF FG1180250",null,"safety bracket SP d.180/250",null,null,"180/250",null,5]
["ACF FG1300",null,"Safety bracket SP d.300",null,null,300,null,6]
["ACF FG1200350",null,"Safety bracket SP d.200/350",null,null,"200/350",null,7]
["ACF FG1230350",null,"SP safety bracket d.230/350",null,null,"230/350",null,8]
["ACF FG1250400",null,"SP safety bracket d.250/400",null,null,"250/400",null,9]
["DPC 4181130200",null,"DP 25 130*180 / DPC adapter d.130*200",null,null,"130/200",null,100]
["DPC 4181150230",null,"DP 25 150*200 / DPC adapter d.150*230",null,null,"150/230",null,120]

{"sheet":"Data","index":3,"n_rows":15,"n_cols":20,"rows_kept":15,"cut":false,"hidden":true,"merged":[]}
[null,null,null,null,null,null,null,null,null,null,null,null,null,"Accountmanager"]
[null,"Diameter","Ø100150","Ø120180","Ø130200","Ø150230","Ø180250","Ø200350","Ø230350","Ø250400",null,"Loos",null,"Accountmanager 1",null,"Aansluiting1",null,"Aansluiting2",null,"Verdiepingen"]
[null,null,null,null,null,null,null,null,null,null,null,0,null,"Accountmanager 2",null,null,null,null,null,0]
[null,"Ø100150",2,3,4,4,5,7,8,10,null,1,null,"Accountmanager 3",null,"60/100",null,"Enkel",null,1]
[null,"Ø120180",3,4,5,5,6,8,9,11,null,2,null,"Accountmanager 4",null,"80/125",null,"Dubbel",null,2]
[null,"Ø130200",null,null,6,6,7,9,10,12,null,3,null,"Accountmanager 5",null,"80/80",null,null,null,3]
[null,"Ø150230",null,null,7,7,8,10,11,13,null,4,null,"Accountmanager 6",null,null,null,null,null,4]
[null,"Ø180250",null,null,null,8,9,11,12,14,null,null,null,"Accountmanager 7",null,null,null,null,null,5]
[null,"Ø200350",null,null,null,null,10,12,null,15,null,null,null,"Accountmanager 8",null,null,null,null,null,6]
[null,"Ø230350",null,null,null,null,null,13,null,16,null,null,null,"Accountmanager 9",null,null,null,null,null,7]
[null,"Ø250400",null,null,null,null,null,null,null,null,null,null,null,null,null,null,null,null,null,8]
[null,null,null,null,null,null,null,null,null,null,null,null,null,null,null,null,null,null,null,9]
[null,null,null,null,null,null,null,null,null,null,null,null,null,null,null,null,null,null,null,10]
[null,null,null,null,null,null,null,null,null,null,null,null,null,null,null,null,null,null,null,11]
[null,null,null,null,null,null,null,null,null,null,null,null,null,null,null,null,null,null,null,12]